fUST/lending_fUST_20240414
["ID","MTS","AMOUNT","RATE_DAILY","PERIOD"]
[322563650,1713065448255,-223.067,0.00048866,2]
[322563652,1713065448264,-309.35,0.00048931,7]
[322563654,1713065448273,-3375.73989283,0.00049,120]
[322563656,1713065448282,-603.33633004,0.00049185,7]
[322563658,1713065448292,-169.996218,0.00049315,2]
[322563660,1713065448301,-703.87,0.000497,7]
[322563662,1713065448310,-154.86062544,0.0005,30]
[322563664,1713065448320,-206.76561334,0.0005,20]
[322563666,1713065448329,-3235.55884688,0.0005,14]
[322563668,1713065448339,-151.0,0.0005,120]
[322563670,1713065448348,-19999.8808021,0.0005,120]
[322563672,1713065448358,-19999.8808021,0.0005,120]
[322563674,1713065448368,-19999.8808021,0.0005,120]
[322563676,1713065448377,-19999.8808021,0.0005,120]
[322563685,1713065448455,-19999.8808021,0.0005,120]
[322563687,1713065448465,-19999.8808021,0.0005,120]
[322563689,1713065448474,-19999.8808021,0.0005,120]
[322563691,1713065448484,-19999.8808021,0.0005,120]
[322563693,1713065448493,-1851.021312,0.0005,7]
[322563695,1713065448503,-1851.021312,0.0005,7]
[322563697,1713065448513,-1851.021312,0.0005,7]
[322563699,1713065448523,-1851.021312,0.0005,7]
[322563701,1713065448533,-424.694058,0.0005,7]
[322563703,1713065448543,-424.694058,0.0005,7]
[322563705,1713065448552,-424.694058,0.0005,7]
[322563707,1713065448561,-424.694058,0.0005,7]
[322563709,1713065448571,-9071.353962,0.0005,7]
[322563711,1713065448581,-9071.353962,0.0005,7]
[322563713,1713065448591,-9071.353962,0.0005,7]
[322563715,1713065448601,-9071.353962,0.0005,7]
[322563717,1713065448610,-151.0,0.0005,7]
[322563719,1713065448620,-151.0,0.0005,7]
[322563721,1713065448631,-151.0,0.0005,7]
[322563723,1713065448641,-151.0,0.0005,7]
[322563725,1713065448653,-1990.210696,0.0005,7]
[322563727,1713065448662,-1990.210696,0.0005,7]
[322563729,1713065448671,-1990.210696,0.0005,7]
[322563731,1713065448680,-1990.210696,0.0005,7]
[322563732,1713065448690,-212.729944,0.0005,7]
[322563734,1713065448700,-212.729944,0.0005,7]
[322563736,1713065448710,-212.729944,0.0005,7]
[322563739,1713065448720,-212.729944,0.0005,7]
[322563740,1713065448730,-212.729944,0.0005,7]
[322563742,1713065448739,-212.729944,0.0005,7]
[322563744,1713065448749,-795.782119,0.0005,7]
[322563746,1713065448759,-795.782119,0.0005,7]
[322563748,1713065448768,-795.782119,0.0005,7]
[322563750,1713065448778,-795.782119,0.0005,7]
[322563752,1713065448787,-795.782119,0.0005,7]
[322563754,1713065448797,-795.782119,0.0005,7]
[322563756,1713065448807,-151.0,0.0005,7]
[322563758,1713065448816,-151.0,0.0005,7]
[322563760,1713065448826,-151.0,0.0005,7]
[322563762,1713065448841,-151.0,0.0005,7]
[322563764,1713065448851,-151.0,0.0005,7]
[322563766,1713065448862,-151.0,0.0005,7]
[322563768,1713065448873,-151.0,0.0005,7]
[322563770,1713065448885,-151.0,0.0005,7]
[322563772,1713065448899,-151.0,0.0005,7]
[322563774,1713065448909,-4471.997018,0.0005,7]
[322563776,1713065448919,-4471.997018,0.0005,7]
[322563778,1713065448929,-2172.08204383,0.0005,7]
[322564177,1713065458057,269.54304524,0.00027397,14]
[322564178,1713065458079,645.8892892,0.00027397,14]
[322564200,1713066337176,-362.03958024,0.00027396,2]
[322564202,1713066453103,-154.87609912,0.00027394,2]
[322564203,1713066453123,-742.0201292,0.00027395,2]
[322564204,1713066453145,-456.90188882,0.00027396,2]
[322564205,1713066560118,-247.25367607,0.00025296,2]
[322564206,1713066560138,-1928.40015842,0.00027396,5]
[322564207,1713066560158,-56.93558194,0.00027396,2]
[322564208,1713066560179,-204.723127,0.00027397,2]
[322564209,1713066560199,-247.25367607,0.00030296,2]
[322564210,1713066560221,-191.04250759,0.00035294,4]
[322564211,1713066560318,-154.87609912,0.00035295,4]
[322564212,1713066560339,-247.25367607,0.00035296,2]
[322564213,1713066560359,-166.666666,0.00035313,2]
[322564214,1713066560380,-352.205048,0.00035621,2]
[322564215,1713066560401,-706.45114391,0.00035857,120]
[322564255,1713066632634,-396.69873209,0.00035857,120]
[322564257,1713066632644,-400.0,0.00036456,2]
[322564259,1713066632654,-300.0,0.00036456,2]
[322564261,1713066632664,-11088.1641254,0.00036457,2]
[322564263,1713066632674,-166.666666,0.00036917,2]
[322564265,1713066632684,-8763.51941407,0.00037499,2]
[322564267,1713066632694,-2000.0,0.000375,14]
[322564269,1713066632704,-2000.0,0.0003751,14]
[322564271,1713066632714,-2000.0,0.0003752,14]
[322564273,1713066632724,-2000.0,0.0003753,14]
[322564275,1713066632734,-2000.0,0.0003754,14]
[322564278,1713066632744,-2000.0,0.0003755,14]
[322564280,1713066632754,-10619.43475223,0.0003755,5]
[322564282,1713066632763,-2000.0,0.0003756,14]
[322564284,1713066632773,-155.95728951,0.00037567,4]
[322564286,1713066632782,-868.55557949,0.00037567,4]
[322564288,1713066632792,-232.14868867,0.00037568,4]
[322564290,1713066632802,-13220.21405982,0.00037569,30]
[322564292,1713066632811,-2000.0,0.0003757,14]
[322564294,1713066632820,-2000.0,0.0003758,14]
[322564296,1713066632829,-270.9698881,0.00037589,4]
[322564298,1713066632839,-2000.0,0.0003759,14]
[322564300,1713066632851,-2000.0,0.000376,14]
[322564302,1713066632861,-2000.0,0.0003761,14]
[322564304,1713066632870,-2000.0,0.0003762,14]
[322564306,1713066632880,-155.05874787,0.00037659,4]
[322564308,1713066632889,-166.666666,0.00038522,2]
[322564310,1713066632899,-460.0,0.00040102,3]
[322564312,1713066632908,-166.666666,0.00040127,2]
[322564314,1713066632918,-188.58336566,0.00041,2]
[322564316,1713066632927,-179.70086081,0.00041,120]
[322564318,1713066632937,-1061.90418992,0.00041,4]
[322564320,1713066632946,-177.7226624,0.00041096,2]
[322564322,1713066632955,-1233.6895526,0.00041096,7]
[322564324,1713066632965,-1103.149876,0.00041833,120]
[322564326,1713066632975,-1294.94716389,0.00042138,4]
[322564328,1713066632985,-500.0,0.00042139,31]
[322564330,1713066632994,-500.0,0.00042139,7]
[322564332,1713066633004,-500.0,0.00042139,31]
[322564334,1713066633014,-500.0,0.00042139,31]
[322564337,1713066633023,-386.33719198,0.00042139,31]
[322564339,1713066633033,-362.41362914,0.00042139,7]
[322564341,1713066633043,-620.0,0.00042139,31]
[322564343,1713066633053,-1000.0,0.0004214,30]
[322564345,1713066633063,-23367.7032486,0.0004214,2]
[322564347,1713066633073,-188.43765363,0.00042773,2]
[322564349,1713066633082,-197.62022707,0.00042893,6]
[322564351,1713066633091,-788.819534,0.000429,40]
[322564353,1713066633104,-356.52225126,0.0004297,2]
[322564355,1713066633115,-2000.0,0.00043,30]
[322564357,1713066633125,-2000.0,0.0004301,30]
[322564358,1713066633134,-1951.77597147,0.0004302,30]
[322564365,1713066633187,-48.22402853,0.0004302,30]
[322564367,1713066633196,-658.76597147,0.0004303,30]
[322564370,1713066633217,-446.19,0.0004303,30]
[322564372,1713066633232,-753.7452,0.0004303,30]
[322564541,1713066638297,-141.29882853,0.0004303,30]
[322564543,1713066638307,-2000.0,0.0004304,30]
[322564544,1713066638317,-2000.0,0.0004305,30]
[322564545,1713066638327,-2000.0,0.0004306,30]
[322564546,1713066638337,-2000.0,0.0004307,30]
[322564547,1713066638347,-2000.0,0.0004308,30]
[322564548,1713066638362,-2000.0,0.0004309,30]
[322564549,1713066638371,-2000.0,0.000431,30]
[322564550,1713066638380,-2000.0,0.0004311,30]
[322564551,1713066638389,-2000.0,0.0004312,30]
[322564552,1713066638399,-2000.0,0.0004313,30]
[322564553,1713066638409,-2000.0,0.0004314,30]
[322564554,1713066638418,-2000.0,0.0004315,30]
[322564555,1713066638427,-2000.0,0.0004316,30]
[322564556,1713066638437,-2000.0,0.0004317,30]
[322564557,1713066638446,-2000.0,0.0004318,30]
[322564558,1713066638456,-2000.0,0.0004319,30]
[322564559,1713066638465,-2000.0,0.000432,30]
[322564560,1713066638475,-3040.950467,0.0004321,30]
[322564561,1713066638484,-290.96325985,0.00044998,30]
[322564562,1713066638493,-8525.96587147,0.00045,120]
[322564563,1713066638503,-154.84515485,0.000459,4]
[322564564,1713066638512,-356.52225126,0.00045901,2]
[322564565,1713066638522,-586.0,0.000477,30]
[322564566,1713066638531,-166.19229,0.00047718,2]
[322564567,1713066638540,-1103.149876,0.00047809,120]
[322564568,1713066638549,-150.0,0.00048,90]
[322564569,1713066638559,-356.52225126,0.00048832,2]
[322564570,1713066638568,-3375.73989283,0.00049,120]
[322564571,1713066638578,-208.729,0.00049082,2]
[322564572,1713066638587,-2093.77755635,0.00049998,4]
[322564573,1713066638597,-207.34524667,0.00049998,2]
[322564574,1713066638608,-1866.02681334,0.00049998,4]
[322564575,1713066638618,-186.95780629,0.00049998,4]
[322564576,1713066638629,-859.67234296,0.00049998,4]
[322564577,1713066638639,-282.71407168,0.00049998,2]
[322564578,1713066638648,-1000.0,0.00049998,30]
[322564579,1713066638658,-714.47105651,0.00049999,2]
[322564580,1713066638668,-154.84515485,0.0005,30]
[322564581,1713066638678,-225.54747008,0.0005,30]
[322564582,1713066638687,-310.18252693,0.0005,2]
[322564583,1713066638697,-530.0,0.000504,2]
[322564584,1713066638706,-150.0,0.00050486,120]
[322564585,1713066638716,-306.0,0.00050491,2]
[322564586,1713066638726,-160.717858,0.0005175,2]
[322564587,1713066638736,-356.52225126,0.00051763,2]
[322564588,1713066638745,-150.0,0.00051866,120]
[322564589,1713066638756,-1000.0,0.00053,120]
[322564590,1713066638765,-150.0,0.00053011,120]
[322564591,1713066638775,-150.8642222,0.00053244,2]
[322564592,1713066638784,-352.205048,0.00053431,2]
[322564593,1713066638794,-2000.0,0.0005368,90]
[322564594,1713066638804,-1103.149876,0.00053785,120]
[322564595,1713066638814,-500.0,0.00053794,120]
[322564596,1713066638823,-482.33,0.00053794,120]
[322564597,1713066638833,-500.0,0.00053794,120]
[322564598,1713066638842,-480.77,0.00053794,120]
[322564599,1713066638852,-500.0,0.00053794,120]
[322564600,1713066638862,-500.0,0.00053794,120]
[322564601,1713066638871,-500.0,0.00053794,120]
[322564602,1713066638882,-500.0,0.00053794,120]
[322564603,1713066638891,-500.0,0.00053794,120]
[322564604,1713066638900,-500.0,0.00053794,120]
[322564605,1713066638910,-500.0,0.00053794,120]
[322564606,1713066638919,-500.0,0.00053794,120]
[322564607,1713066638928,-500.0,0.00053794,120]
[322564608,1713066638937,-500.0,0.00053794,120]
[322564609,1713066638947,-500.0,0.00053794,120]
[322564610,1713066638956,-500.0,0.00053794,120]
[322564611,1713066638965,-500.0,0.00053794,120]
[322564612,1713066638974,-500.0,0.00053794,120]
[322564613,1713066638984,-500.0,0.00053794,120]
[322564614,1713066638993,-500.0,0.00053794,120]
[322564615,1713066639002,-500.0,0.00053794,120]
[322564616,1713066639012,-500.0,0.00053794,120]
[322564617,1713066639109,-500.0,0.00053794,120]
[322564618,1713066639120,-500.0,0.00053794,120]
[322564619,1713066639130,-500.0,0.00053794,120]
[322564620,1713066639139,-500.0,0.00053794,120]
[322564621,1713066639148,-500.0,0.00053794,120]
[322564622,1713066639158,-500.0,0.00053794,120]
[322564623,1713066639167,-500.0,0.00053794,120]
[322564624,1713066639176,-500.0,0.00053794,120]
[322564625,1713066639185,-500.0,0.00053794,120]
[322564626,1713066639194,-172.07,0.00053794,120]
[322564627,1713066639203,-500.0,0.00053794,120]
[322564628,1713066639212,-153.24,0.00053794,120]
[322564629,1713066639222,-500.0,0.00053794,120]
[322564630,1713066639234,-500.0,0.00053794,120]
[322564631,1713066639243,-500.0,0.00053794,120]
[322564632,1713066639252,-301.7284444,0.00054138,4]
[322564633,1713066639261,-3268.55,0.00054245,7]
[322564634,1713066639270,-3268.55,0.00054245,7]
[322564635,1713066639280,-3268.55,0.00054245,7]
[322564636,1713066639289,-3268.55,0.00054245,7]
[322564637,1713066639299,-3268.55,0.00054245,7]
[322564638,1713066639309,-3268.55,0.00054245,7]
[322564639,1713066639318,-3268.55,0.00054245,7]
[322564640,1713066639327,-3268.55,0.00054245,7]
[322564641,1713066639337,-3268.55,0.00054245,7]
[322564642,1713066639345,-3268.55,0.00054245,7]
[322564643,1713066639354,-500.0,0.00054245,120]
[322564644,1713066639363,-260.81842964,0.00054245,120]
[322564645,1713066639373,-367.89143509,0.00054245,120]
[322564646,1713066639382,-500.0,0.00054245,120]
[322564647,1713066639391,-444.67564297,0.00054245,120]
[322564648,1713066639400,-372.48490301,0.00054245,120]
[322564649,1713066639409,-500.0,0.00054245,120]
[322564650,1713066639419,-221.06561637,0.00054245,120]
[322564651,1713066639429,-500.0,0.00054245,120]
[322564652,1713066639438,-375.64978604,0.00054245,120]
[322564653,1713066639447,-158.55913621,0.00054245,3]
[322564654,1713066639456,-118418.37963033,0.00054246,61]
[322564655,1713066639465,-2391.20285412,0.00054246,120]
[322564656,1713066639474,-237.2136,0.00054519,2]
[322564657,1713066639483,-356.52225126,0.00054694,2]
[322564658,1713066639492,-3403.56957848,0.00054694,2]
[322564659,1713066639501,-177.0,0.000547,30]
[322564660,1713066639511,-2000.0,0.000547,95]
[322564661,1713066639520,-2000.0,0.000547,95]
[322564662,1713066639530,-150.0,0.000547,2]
[322564663,1713066639539,-2000.0,0.0005471,95]
[322564664,1713066639548,-2000.0,0.0005471,95]
[322564665,1713066639558,-2000.0,0.0005472,95]
[322564666,1713066639567,-2000.0,0.0005472,95]
[322564667,1713066639577,-2000.0,0.0005473,95]
[322564668,1713066639586,-2000.0,0.0005473,95]
[322564669,1713066639595,-2000.0,0.0005474,95]
[322564670,1713066639605,-2000.0,0.0005474,95]
[322564671,1713066639614,-2000.0,0.0005475,95]
[322564672,1713066639623,-2000.0,0.0005475,95]
[322564673,1713066639632,-2000.0,0.0005476,95]
[322564674,1713066639641,-2000.0,0.0005476,95]
[322564675,1713066639651,-150.5,0.00054765,35]
[322564676,1713066639660,-2000.0,0.0005477,95]
[322564677,1713066639669,-2000.0,0.0005477,95]
[322564678,1713066639679,-150.5,0.00054775,35]
[322564679,1713066639688,-2000.0,0.0005478,95]
[322564680,1713066639697,-2000.0,0.0005478,95]
[322564681,1713066639707,-150.5,0.00054785,35]
[322564682,1713066639716,-13999.78000006,0.0005479,2]
[322564683,1713066639725,-2000.0,0.0005479,95]
[322564684,1713066639734,-2000.0,0.0005479,95]
[322564685,1713066639743,-387.46470604,0.00054792,4]
[322564686,1713066639752,-352.38358907,0.00054792,4]
[322564687,1713066639762,-431.79929952,0.00054792,4]
[322564688,1713066639771,-310.74059759,0.00054793,4]
[322564689,1713066639781,-206.66796996,0.00054794,2]
[322564691,1713066639791,-156.08082161,0.00054794,4]
[322564692,1713066639802,-168.4336271,0.00054794,4]
[322564694,1713066639814,-500.0,0.00054794,120]
[322564696,1713066639824,-500.0,0.00054794,120]
[322564698,1713066639834,-500.0,0.00054794,120]
[322564700,1713066639845,-500.0,0.00054794,120]
[322564701,1713066639855,-500.0,0.00054794,120]
[322564703,1713066639865,-500.0,0.00054794,120]
[322564705,1713066639875,-500.0,0.00054794,120]
[322564707,1713066639885,-190.05800521,0.00054794,120]
[322564708,1713066639894,-500.0,0.00054794,120]
[322564709,1713066639904,-500.0,0.00054794,120]
[322564710,1713066639915,-500.0,0.00054794,120]
[322564711,1713066639926,-500.0,0.00054794,7]
[322564712,1713066639935,-500.0,0.00054794,120]
[322564713,1713066639945,-179.12399732,0.00054794,120]
[322564714,1713066639955,-500.0,0.00054794,120]
[322564715,1713066639965,-207.57755959,0.00054794,120]
[322564716,1713066639977,-500.0,0.00054794,120]
[322564717,1713066639988,-500.0,0.00054794,120]
[322564718,1713066640003,-312.83387529,0.00054794,120]
[322564719,1713066640020,-500.0,0.00054794,120]
[322564720,1713066640030,-500.0,0.00054794,120]
[322564721,1713066640040,-500.0,0.00054794,120]
[322564722,1713066640050,-230.30707394,0.00054794,120]
[322564723,1713066640060,-500.0,0.00054794,120]
[322564724,1713066640069,-502.39794386,0.00054794,120]
[322564725,1713066640079,-500.0,0.00054794,120]
[322564726,1713066640088,-500.0,0.00054794,120]
[322564727,1713066640097,-500.0,0.00054794,120]
[322564728,1713066640109,-500.0,0.00054794,120]
[322564729,1713066640119,-500.0,0.00054794,120]
[322564730,1713066640128,-239.59887307,0.00054794,120]
[322564731,1713066640137,-500.0,0.00054794,120]
[322564732,1713066640146,-500.0,0.00054794,120]
[322564733,1713066640155,-500.0,0.00054794,120]
[322564734,1713066640164,-500.0,0.00054794,120]
[322564735,1713066640174,-500.0,0.00054794,120]
[322564736,1713066640183,-500.0,0.00054794,120]
[322564737,1713066640192,-159.246,0.00054794,7]
[322564738,1713066640201,-159.246,0.00054794,7]
[322564739,1713066640210,-159.246,0.00054794,7]
[322564740,1713066640220,-500.0,0.00054794,120]
[322564741,1713066640232,-500.0,0.00054794,120]
[322564742,1713066640242,-500.0,0.00054794,120]
[322564743,1713066640315,-159.246,0.00054794,7]
[322564744,1713066640324,-500.0,0.00054794,120]
[322564745,1713066640334,-159.246,0.00054794,7]
[322564746,1713066640343,-159.246,0.00054794,7]
[322564747,1713066640356,-500.0,0.00054794,120]
[322564748,1713066640366,-407.98962987,0.00054794,120]
[322564749,1713066640375,-500.0,0.00054794,120]
[322564750,1713066640384,-500.0,0.00054794,120]
[322564751,1713066640393,-500.0,0.00054794,120]
[322564752,1713066640402,-500.0,0.00054794,120]
[322564753,1713066640411,-500.0,0.00054794,120]
[322564754,1713066640421,-508.5765188,0.00054794,120]
[322564755,1713066640430,-500.0,0.00054794,120]
[322564756,1713066640439,-500.0,0.00054794,120]
[322564757,1713066640448,-500.0,0.00054794,120]
[322564758,1713066640458,-500.0,0.00054794,120]
[322564759,1713066640467,-500.0,0.00054794,120]
[322564760,1713066640477,-510.14736487,0.00054794,120]
[322564761,1713066640486,-157.857416,0.00054794,7]
[322564762,1713066640496,-157.857416,0.00054794,7]
[322564763,1713066640505,-384.08421743,0.00054794,120]
[322564764,1713066640514,-500.0,0.00054794,120]
[322564765,1713066640524,-157.857416,0.00054794,7]
[322564766,1713066640533,-157.857416,0.00054794,7]
[322564767,1713066640543,-500.0,0.00054794,120]
[322564768,1713066640552,-500.0,0.00054794,120]
[322564769,1713066640561,-500.0,0.00054794,120]
[322564770,1713066640571,-500.0,0.00054794,120]
[322564771,1713066640580,-500.0,0.00054794,120]
[322564772,1713066640589,-500.0,0.00054794,120]
[322564773,1713066640598,-500.0,0.00054794,120]
[322564774,1713066640610,-500.0,0.00054794,120]
[322564775,1713066640619,-500.0,0.00054794,120]
[322564776,1713066640628,-238.74749659,0.00054794,120]
[322564777,1713066640638,-500.0,0.00054794,120]
[322564778,1713066640647,-500.0,0.00054794,120]
[322564779,1713066640656,-500.0,0.00054794,120]
[322564780,1713066640665,-500.0,0.00054794,120]
[322564781,1713066640674,-500.0,0.00054794,120]
[322564782,1713066640683,-505.57019764,0.00054794,120]
[322564783,1713066640693,-500.0,0.00054794,120]
[322564784,1713066640702,-500.0,0.00054794,120]
[322564785,1713066640711,-504.74532458,0.00054794,120]
[322564786,1713066640720,-500.0,0.00054794,120]
[322564787,1713066640729,-500.0,0.00054794,120]
[322564788,1713066640739,-500.0,0.00054794,120]
[322564789,1713066640748,-550.78548023,0.00054794,120]
[322564790,1713066640758,-500.0,0.00054794,120]
[322564791,1713066640767,-500.0,0.00054794,120]
[322564792,1713066640777,-398.81236266,0.00054794,120]
[322564793,1713066640786,-172.00134143,0.00054794,120]
[322564794,1713066640795,-500.0,0.00054794,120]
[322564795,1713066640804,-500.0,0.00054794,120]
[322564796,1713066640815,-501.17274724,0.00054794,120]
[322564797,1713066640824,-1783.78,0.00054794,120]
[322564798,1713066640834,-500.0,0.00054794,120]
[322564799,1713066640843,-500.0,0.00054794,120]
[322564800,1713066640852,-502.01167525,0.00054794,120]
[322564801,1713066640863,-500.0,0.00054794,120]
[322564802,1713066640872,-500.0,0.00054794,120]
[322564803,1713066640882,-500.0,0.00054794,120]
[322564804,1713066640891,-500.0,0.00054794,120]
[322564805,1713066640901,-500.0,0.00054794,120]
[322564806,1713066640910,-500.0,0.00054794,120]
[322564807,1713066640920,-1095.87,0.00054794,120]
[322564808,1713066640930,-500.0,0.00054794,120]
[322564809,1713066640939,-500.0,0.00054794,120]
[322564810,1713066640948,-500.0,0.00054794,120]
[322564811,1713066640958,-500.0,0.00054794,120]
[322564812,1713066640967,-500.0,0.00054794,120]
[322564813,1713066640976,-500.0,0.00054794,120]
[322564814,1713066640985,-501.53572753,0.00054794,120]
[322564815,1713066640994,-500.0,0.00054794,120]
[322564816,1713066641004,-500.0,0.00054794,120]
[322564817,1713066641013,-500.0,0.00054794,120]
[322564818,1713066641022,-576.28,0.00054794,120]
[322564819,1713066641031,-500.0,0.00054794,120]
[322564820,1713066641040,-500.0,0.00054794,120]
[322564821,1713066641050,-500.0,0.00054794,120]
[322564822,1713066641059,-500.0,0.00054794,120]
[322564823,1713066641068,-500.0,0.00054794,120]
[322564824,1713066641078,-500.0,0.00054794,120]
[322564825,1713066641087,-500.0,0.00054794,120]
[322564826,1713066641096,-500.0,0.00054794,120]
[322564827,1713066641108,-500.0,0.00054794,120]
[322564828,1713066641117,-500.0,0.00054794,120]
[322564829,1713066641126,-500.0,0.00054794,120]
[322564830,1713066641136,-500.0,0.00054794,120]
[322564831,1713066641145,-500.0,0.00054794,120]
[322564832,1713066641155,-500.0,0.00054794,120]
[322564833,1713066641164,-500.0,0.00054794,120]
[322564834,1713066641173,-500.0,0.00054794,120]
[322564835,1713066641182,-500.0,0.00054794,120]
[322564836,1713066641191,-248.79138308,0.00054794,120]
[322564837,1713066641200,-500.0,0.00054794,120]
[322564838,1713066641209,-228.05207687,0.00054794,120]
[322564839,1713066641218,-500.0,0.00054794,120]
[322564840,1713066641231,-502.04804783,0.00054794,120]
[322564841,1713066641240,-500.0,0.00054794,120]
[322564842,1713066641250,-500.0,0.00054794,120]
[322564843,1713066641259,-530.85,0.00054794,120]
[322564844,1713066641269,-1457.07,0.00054794,120]
[322564845,1713066641278,-500.0,0.00054794,120]
[322564846,1713066641287,-500.0,0.00054794,120]
[322564848,1713066641296,-151.0,0.00054794,120]
[322564850,1713066641305,-500.0,0.00054794,120]
[322564852,1713066641315,-500.0,0.00054794,120]
[322564854,1713066641325,-552.16,0.00054794,120]
[322564859,1713066641394,-502.37284172,0.00054794,120]
[322564860,1713066641403,-500.0,0.00054794,120]
[322564861,1713066641412,-3626.27,0.00054794,120]
[322564862,1713066641422,-500.0,0.00054794,120]
[322564864,1713066641431,-151.0,0.00054794,7]
[322564866,1713066641440,-151.0,0.00054794,7]
[322564867,1713066641450,-151.0,0.00054794,7]
[322564869,1713066641460,-500.0,0.00054794,14]
[322564870,1713066641469,-500.0,0.00054794,120]
[322564872,1713066641478,-500.0,0.00054794,120]
[322564874,1713066641488,-500.0,0.00054794,120]
[322564875,1713066641497,-500.0,0.00054794,120]
[322564876,1713066641506,-153.72257106,0.00054794,120]
[322564877,1713066641516,-250.66945422,0.00054794,120]
[322564878,1713066641525,-500.0,0.00054794,120]
[322564879,1713066641534,-500.0,0.00054794,120]
[322564880,1713066641544,-500.0,0.00054794,120]
[322564881,1713066641553,-500.0,0.00054794,120]
[322564882,1713066641561,-500.0,0.00054794,120]
[322564883,1713066641570,-500.0,0.00054794,120]
[322564884,1713066641578,-500.0,0.00054794,120]
[322564885,1713066641588,-206.789637,0.00054794,7]
[322564886,1713066641597,-500.0,0.00054794,120]
[322564887,1713066641608,-206.789637,0.00054794,7]
[322564888,1713066641617,-206.789637,0.00054794,7]
[322564889,1713066641626,-206.789637,0.00054794,7]
[322564890,1713066641635,-3082.56,0.00054794,120]
[322564891,1713066641643,-500.0,0.00054794,120]
[322564892,1713066641652,-206.789637,0.00054794,7]
[322564893,1713066641661,-206.789637,0.00054794,7]
[322564894,1713066641670,-500.40192288,0.00054794,120]
[322564895,1713066641679,-500.0,0.00054794,120]
[322564896,1713066641688,-366.2208583,0.00054794,120]
[322564897,1713066641697,-500.0,0.00054794,120]
[322564898,1713066641706,-521.04607733,0.00054794,120]
[322564899,1713066641715,-500.0,0.00054794,120]
[322564900,1713066641724,-500.0,0.00054794,120]
[322564901,1713066641733,-500.0,0.00054794,120]
[322564902,1713066641742,-500.0,0.00054794,120]
[322564903,1713066641750,-500.0,0.00054794,120]
[322564904,1713066641759,-501.58856166,0.00054794,120]
[322564905,1713066641768,-500.0,0.00054794,120]
[322564906,1713066641777,-500.0,0.00054794,120]
[322564907,1713066641785,-206.493224,0.00054794,7]
[322564908,1713066641795,-206.493224,0.00054794,7]
[322564909,1713066641804,-206.493224,0.00054794,7]
[322564910,1713066641813,-500.0,0.00054794,120]
[322564911,1713066641821,-500.0,0.00054794,120]
[322564912,1713066641830,-206.493224,0.00054794,7]
[322564913,1713066641839,-206.493224,0.00054794,7]
[322564914,1713066641848,-206.493224,0.00054794,7]
[322564915,1713066641857,-172.10345249,0.00054794,120]
[322564916,1713066641866,-500.0,0.00054794,120]
[322564917,1713066641875,-500.0,0.00054794,120]
[322564918,1713066641885,-769.77,0.00054794,120]
[322564919,1713066641894,-500.0,0.00054794,120]
[322564920,1713066641902,-500.0,0.00054794,120]
[322564921,1713066641911,-500.0,0.00054794,120]
[322564922,1713066641920,-500.0,0.00054794,120]
[322564923,1713066641929,-500.0,0.00054794,120]
[322564924,1713066641938,-500.0,0.00054794,120]
[322564925,1713066641947,-500.0,0.00054794,120]
[322564926,1713066641956,-500.0,0.00054794,120]
[322564927,1713066641965,-500.0,0.00054794,120]